[Event "*** SCC Grand Prix: Titled Tuesday Blitz"]
[Site "Chess.com"]
[Date "2020.07.21"]
[Round "1"]
[White "MusicCityMaster"]
[Black "Biranidun"]
[Result "0-1"]
[WhiteElo "2433"]
[BlackElo "2882"]
[TimeControl "180+1"]
[EndTime "10:07:49 PDT"]
[Termination "Biranidun won by resignation"]

1. e4 {[%clk 0:03:00.3]} 1... c5 {[%clk 0:02:36.3]} 2. Nf3 {[%clk 0:02:59.5]}
2... d6 {[%clk 0:02:35.4]} 3. d4 {[%clk 0:02:59.6]} 3... cxd4 {[%clk 0:02:33.6]}
4. Nxd4 {[%clk 0:03:00.3]} 4... Nf6 {[%clk 0:02:34]} 5. Nc3 {[%clk 0:03:00.6]}
5... a6 {[%clk 0:02:34.5]} 6. Bc4 {[%clk 0:03:00.8]} 6... e6 {[%clk 0:02:34.3]}
7. Bb3 {[%clk 0:03:01.3]} 7... b5 {[%clk 0:02:34.1]} 8. Qe2 {[%clk 0:03:01.9]}
8... Be7 {[%clk 0:02:25.8]} 9. g4 {[%clk 0:03:00.1]} 9... O-O {[%clk 0:02:20.7]}
10. g5 {[%clk 0:02:59.6]} 10... Nfd7 {[%clk 0:02:20.8]} 11. h4 {[%clk
0:02:55.7]} 11... Bb7 {[%clk 0:02:18.5]} 12. g6 {[%clk 0:02:32.5]} 12... hxg6
{[%clk 0:02:09.9]} 13. h5 {[%clk 0:02:32.6]} 13... g5 {[%clk 0:02:05.5]} 14. Be3
{[%clk 0:01:52.5]} 14... Nc5 {[%clk 0:02:01]} 15. f3 {[%clk 0:01:47.4]} 15...
Nbd7 {[%clk 0:01:59.1]} 16. O-O-O {[%clk 0:01:47]} 16... Rc8 {[%clk 0:01:57]}
17. Kb1 {[%clk 0:01:45.6]} 17... Ne5 {[%clk 0:01:48.8]} 18. f4 {[%clk
0:01:36.6]} 18... gxf4 {[%clk 0:01:45.7]} 19. Bxf4 {[%clk 0:01:35.7]} 19... Bf6
{[%clk 0:01:45.2]} 20. Rhg1 {[%clk 0:01:28.9]} 20... b4 {[%clk 0:01:42.2]} 21.
Nd5 {[%clk 0:01:24.2]} 21... exd5 {[%clk 0:01:33.2]} 22. Nf5 {[%clk 0:01:23.3]}
22... Kh8 {[%clk 0:01:01.6]} 23. Qg2 {[%clk 0:00:34.9]} 23... Ne6 {[%clk
0:00:32.8]} 24. Bxe5 {[%clk 0:00:31]} 24... Bxe5 {[%clk 0:00:32.8]} 25. exd5
{[%clk 0:00:29.7]} 25... Nf4 {[%clk 0:00:32]} 26. Qg4 {[%clk 0:00:27.2]} 26...
Qf6 {[%clk 0:00:25.6]} 27. Rdf1 {[%clk 0:00:24.4]} 27... Nxd5 {[%clk 0:00:14]}
28. Bxd5 {[%clk 0:00:15.7]} 28... Bxd5 {[%clk 0:00:14.9]} 29. Ne3 {[%clk
0:00:15.6]} 29... Qe6 {[%clk 0:00:14.7]} 30. Nxd5 {[%clk 0:00:14.2]} 30... Qxd5
{[%clk 0:00:15.6]} 31. Rf5 {[%clk 0:00:13]} 31... Qd4 {[%clk 0:00:10.7]} 32.
Qxd4 {[%clk 0:00:13.1]} 32... Bxd4 {[%clk 0:00:11.6]} 33. Rg4 {[%clk 0:00:11.9]}
33... Be5 {[%clk 0:00:07.8]} 34. Rxb4 {[%clk 0:00:11.6]} 34... Rb8 {[%clk
0:00:07.3]} 35. a3 {[%clk 0:00:12.1]} 35... a5 {[%clk 0:00:06.8]} 36. Rxb8
{[%clk 0:00:10.8]} 36... Rxb8 {[%clk 0:00:07.7]} 37. b3 {[%clk 0:00:11.3]} 37...
f6 {[%clk 0:00:07]} 38. Rf3 {[%clk 0:00:11]} 38... Kh7 {[%clk 0:00:07.2]} 39.
Rd3 {[%clk 0:00:10.9]} 39... Kh6 {[%clk 0:00:07.3]} 40. Rd5 {[%clk 0:00:11.3]}
40... a4 {[%clk 0:00:06.5]} 41. b4 {[%clk 0:00:11.8]} 41... Kxh5 {[%clk
0:00:06.8]} 42. c4 {[%clk 0:00:11.5]} 42... Rc8 {[%clk 0:00:05.9]} 43. c5 {[%clk
0:00:11.5]} 43... dxc5 {[%clk 0:00:05.8]} 44. bxc5 {[%clk 0:00:12.2]} 44... g5
{[%clk 0:00:06.2]} 45. Kc2 {[%clk 0:00:12.6]} 45... g4 {[%clk 0:00:06.6]} 46.
Kd3 {[%clk 0:00:13]} 46... g3 {[%clk 0:00:07]} 47. Ke2 {[%clk 0:00:13.6]} 47...
Kg4 {[%clk 0:00:07.4]} 48. c6 {[%clk 0:00:12]} 48... Rxc6 {[%clk 0:00:06.8]} 49.
Ra5 {[%clk 0:00:12.6]} 49... Rc2+ {[%clk 0:00:06.7]} 50. Kd3 {[%clk 0:00:12.5]}
50... Ra2 {[%clk 0:00:05.3]} 51. Rxa4+ {[%clk 0:00:13.4]} 51... Kh3 {[%clk
0:00:05.5]} 52. Ra6 {[%clk 0:00:12]} 52... g2 {[%clk 0:00:05.5]} 0-1

[Event "*** SCC Grand Prix: Titled Tuesday Blitz"]
[Site "Chess.com"]
[Date "2020.07.21"]
[Round "1"]
[White "UCantHandleDenker"]
[Black "chesslh19"]
[Result "1-0"]
[WhiteElo "2563"]
[BlackElo "2172"]
[TimeControl "180+1"]
[EndTime "10:07:50 PDT"]
[Termination "UCantHandleDenker won on time"]

1. Nf3 {[%clk 0:02:57]} 1... Nf6 {[%clk 0:02:55.2]} 2. g3 {[%clk 0:02:55.3]}
2... d5 {[%clk 0:02:53.8]} 3. Bg2 {[%clk 0:02:48.5]} 3... Bg4 {[%clk 0:02:52.2]}
4. O-O {[%clk 0:02:43]} 4... Nbd7 {[%clk 0:02:47]} 5. d3 {[%clk 0:02:42.5]} 5...
c6 {[%clk 0:02:45]} 6. Nbd2 {[%clk 0:02:42.5]} 6... e6 {[%clk 0:02:43.8]} 7. h3
{[%clk 0:02:42.3]} 7... Bxf3 {[%clk 0:02:43.1]} 8. Nxf3 {[%clk 0:02:41.4]} 8...
Be7 {[%clk 0:02:32]} 9. Qe1 {[%clk 0:02:41.3]} 9... O-O {[%clk 0:02:30.7]} 10.
e4 {[%clk 0:02:40.8]} 10... dxe4 {[%clk 0:02:30.7]} 11. dxe4 {[%clk 0:02:40.5]}
11... e5 {[%clk 0:02:30.9]} 12. Qe2 {[%clk 0:02:39.8]} 12... Bc5 {[%clk
0:02:27.6]} 13. Kh1 {[%clk 0:02:37]} 13... Qe7 {[%clk 0:02:18.2]} 14. Nh4 {[%clk
0:02:34.3]} 14... Rfd8 {[%clk 0:02:07.9]} 15. Bd2 {[%clk 0:02:19.2]} 15... Nf8
{[%clk 0:02:02.4]} 16. Rad1 {[%clk 0:02:14.8]} 16... Ne6 {[%clk 0:01:44.8]} 17.
c3 {[%clk 0:02:12.5]} 17... a5 {[%clk 0:01:39.1]} 18. a3 {[%clk 0:02:11]} 18...
a4 {[%clk 0:01:31.3]} 19. Nf5 {[%clk 0:01:33.4]} 19... Qe8 {[%clk 0:01:29.7]}
20. h4 {[%clk 0:01:33.7]} 20... Bf8 {[%clk 0:01:02.8]} 21. Kh2 {[%clk
0:01:08.4]} 21... h5 {[%clk 0:00:50.7]} 22. Bh3 {[%clk 0:01:07.2]} 22... g6
{[%clk 0:00:47.2]} 23. Nh6+ {[%clk 0:00:52]} 23... Kh7 {[%clk 0:00:37.3]} 24.
Bg5 {[%clk 0:00:50.1]} 24... Nxg5 {[%clk 0:00:14.2]} 25. hxg5 {[%clk 0:00:48.2]}
25... Ng8 {[%clk 0:00:11.6]} 26. Nxg8 {[%clk 0:00:42.4]} 26... Kxg8 {[%clk
0:00:11.5]} 27. Qc4 {[%clk 0:00:39.2]} 27... b5 {[%clk 0:00:07.9]} 28. Qe2
{[%clk 0:00:36.9]} 28... Rxd1 {[%clk 0:00:07.4]} 29. Rxd1 {[%clk 0:00:36.4]}
29... Rd8 {[%clk 0:00:08.1]} 30. Kg2 {[%clk 0:00:34]} 30... Be7 {[%clk
0:00:05.6]} 31. f4 {[%clk 0:00:33.4]} 31... Rxd1 {[%clk 0:00:05.3]} 32. Qxd1
{[%clk 0:00:33.4]} 32... exf4 {[%clk 0:00:05.5]} 33. gxf4 {[%clk 0:00:33.2]}
33... Qd8 {[%clk 0:00:05.9]} 34. Qxd8+ {[%clk 0:00:32.4]} 34... Bxd8 {[%clk
0:00:06.8]} 35. Bd7 {[%clk 0:00:32.7]} 35... Bc7 {[%clk 0:00:06.9]} 36. Kf3
{[%clk 0:00:32.4]} 36... h4 {[%clk 0:00:04.8]} 37. e5 {[%clk 0:00:32.2]} 37...
h3 {[%clk 0:00:03.6]} 38. Bxc6 {[%clk 0:00:29.9]} 38... h2 {[%clk 0:00:02.9]}
39. Kg2 {[%clk 0:00:28.4]} 39... Bb6 {[%clk 0:00:02.3]} 40. Kxh2 {[%clk
0:00:26.8]} 40... Be3 {[%clk 0:00:02.7]} 41. Kg3 {[%clk 0:00:26.5]} 41... Bc1
{[%clk 0:00:02.6]} 42. Bxb5 {[%clk 0:00:26.9]} 42... Bxb2 {[%clk 0:00:02.9]} 43.
Bxa4 {[%clk 0:00:27.6]} 43... Bxa3 {[%clk 0:00:03]} 44. Bb3 {[%clk 0:00:26]}
44... Kf8 {[%clk 0:00:03]} 45. Kf3 {[%clk 0:00:25.4]} 45... Ke7 {[%clk
0:00:03.5]} 46. Ke4 {[%clk 0:00:25.7]} 46... Bc1 {[%clk 0:00:03.4]} 47. c4
{[%clk 0:00:22.5]} 47... Bd2 {[%clk 0:00:03]} 48. c5 {[%clk 0:00:22.1]} 48...
Be1 {[%clk 0:00:02.5]} 49. f5 {[%clk 0:00:20.5]} 49... gxf5+ {[%clk 0:00:02.3]}
50. Kxf5 {[%clk 0:00:20.9]} 50... Bc3 {[%clk 0:00:01.9]} 51. c6 {[%clk
0:00:19.9]} 51... Ba5 {[%clk 0:00:01.1]} 52. e6 {[%clk 0:00:16.4]} 52... fxe6+
{[%clk 0:00:01.1]} 53. Bxe6 {[%clk 0:00:17.3]} 1-0

[Event "*** SCC Grand Prix: Titled Tuesday Blitz"]
[Site "Chess.com"]
[Date "2020.07.21"]
[Round "1"]
[White "alexsergeyev"]
[Black "GregShahade"]
[Result "1/2-1/2"]
[WhiteElo "2360"]
[BlackElo "2703"]
[TimeControl "180+1"]
[EndTime "10:07:51 PDT"]
[Termination "Game drawn - insufficient material"]

1. d4 {[%clk 0:03:00.9]} 1... Nf6 {[%clk 0:02:59.7]} 2. Nf3 {[%clk 0:02:59.5]}
2... g6 {[%clk 0:03:00]} 3. c4 {[%clk 0:02:58.8]} 3... Bg7 {[%clk 0:03:00.3]} 4.
Nc3 {[%clk 0:02:57.8]} 4... d5 {[%clk 0:03:00.8]} 5. Bg5 {[%clk 0:02:56.1]} 5...
Ne4 {[%clk 0:03:00.8]} 6. cxd5 {[%clk 0:02:51.2]} 6... Nxg5 {[%clk 0:03:00.5]}
7. Nxg5 {[%clk 0:02:51]} 7... O-O {[%clk 0:03:00.9]} 8. Nf3 {[%clk 0:02:48.7]}
8... c6 {[%clk 0:03:01.1]} 9. dxc6 {[%clk 0:02:45]} 9... Nxc6 {[%clk 0:03:02]}
10. e3 {[%clk 0:02:44.6]} 10... e5 {[%clk 0:03:01.9]} 11. dxe5 {[%clk
0:02:43.9]} 11... Nxe5 {[%clk 0:03:02.8]} 12. Qxd8 {[%clk 0:02:38.3]} 12...
Nxf3+ {[%clk 0:02:41.4]} 13. gxf3 {[%clk 0:02:37.1]} 13... Rxd8 {[%clk
0:02:42.3]} 14. Rd1 {[%clk 0:02:35.8]} 14... Be6 {[%clk 0:02:41.8]} 15. Rxd8+
{[%clk 0:02:12.9]} 15... Rxd8 {[%clk 0:02:42.7]} 16. a3 {[%clk 0:02:12.4]} 16...
Rd6 {[%clk 0:02:20.4]} 17. Be2 {[%clk 0:01:31.9]} 17... Rb6 {[%clk 0:02:18.5]}
18. Na4 {[%clk 0:01:30.1]} 18... Rc6 {[%clk 0:02:18.7]} 19. Kd2 {[%clk 0:01:22]}
19... Bb3 {[%clk 0:01:59.5]} 20. Nc3 {[%clk 0:01:19.7]} 20... a6 {[%clk
0:01:49.3]} 21. Rc1 {[%clk 0:01:15.3]} 21... b5 {[%clk 0:01:49.5]} 22. Bd3
{[%clk 0:01:12]} 22... Rd6 {[%clk 0:01:38.7]} 23. Ke2 {[%clk 0:01:11.6]} 23...
h6 {[%clk 0:01:36.4]} 24. f4 {[%clk 0:01:09.9]} 24... Be6 {[%clk 0:01:32.8]} 25.
f3 {[%clk 0:00:57.6]} 25... Rd8 {[%clk 0:01:24.2]} 26. Rd1 {[%clk 0:00:47.5]}
26... Bb3 {[%clk 0:01:23.2]} 27. Rc1 {[%clk 0:00:45.6]} 27... Re8 {[%clk
0:01:13.3]} 28. Bc2 {[%clk 0:00:38.2]} 28... Bc4+ {[%clk 0:01:12.4]} 29. Bd3
{[%clk 0:00:37.8]} 29... Bd4 {[%clk 0:01:06.1]} 30. Ne4 {[%clk 0:00:33.2]} 30...
Bxb2 {[%clk 0:00:53.2]} 31. Bxc4 {[%clk 0:00:29.1]} 31... Bxc1 {[%clk
0:00:26.2]} 32. Nf6+ {[%clk 0:00:27.4]} 32... Kf8 {[%clk 0:00:26.4]} 33. Nxe8
{[%clk 0:00:27.4]} 33... Kxe8 {[%clk 0:00:16.7]} 34. Bd5 {[%clk 0:00:24]} 34...
Bxa3 {[%clk 0:00:17]} 35. Bb7 {[%clk 0:00:23.9]} 35... a5 {[%clk 0:00:17.6]} 36.
Bc6+ {[%clk 0:00:23.2]} 36... Ke7 {[%clk 0:00:18.3]} 37. Bxb5 {[%clk 0:00:23.2]}
37... Kd6 {[%clk 0:00:18.6]} 38. Kd3 {[%clk 0:00:21.4]} 38... Kc5 {[%clk
0:00:18.2]} 39. Be8 {[%clk 0:00:20.6]} 39... Bb2 {[%clk 0:00:15.3]} 40. Bxf7
{[%clk 0:00:20.4]} 40... g5 {[%clk 0:00:15.8]} 41. fxg5 {[%clk 0:00:19.4]} 41...
hxg5 {[%clk 0:00:16.7]} 42. f4 {[%clk 0:00:19.2]} 42... gxf4 {[%clk 0:00:16.5]}
43. exf4 {[%clk 0:00:19.4]} 43... Kd6 {[%clk 0:00:17.2]} 44. Ke4 {[%clk
0:00:19.4]} 44... Ke7 {[%clk 0:00:17.3]} 45. Bb3 {[%clk 0:00:19.6]} 45... Kf6
{[%clk 0:00:17.6]} 46. Kf3 {[%clk 0:00:19.2]} 46... Kg7 {[%clk 0:00:17.1]} 47.
h3 {[%clk 0:00:19.1]} 47... Bf6 {[%clk 0:00:17.6]} 48. Kg4 {[%clk 0:00:19.4]}
48... Kg6 {[%clk 0:00:16.8]} 49. h4 {[%clk 0:00:19.7]} 49... Kg7 {[%clk
0:00:16.3]} 50. h5 {[%clk 0:00:19.9]} 50... Kh6 {[%clk 0:00:16.4]} 51. Kf5
{[%clk 0:00:20]} 51... Bc3 {[%clk 0:00:15.3]} 52. Kg4 {[%clk 0:00:20.4]} 52...
Bf6 {[%clk 0:00:15.3]} 53. Ba4 {[%clk 0:00:20.5]} 53... Bc3 {[%clk 0:00:15.4]}
54. Bb3 {[%clk 0:00:21]} 54... Bd2 {[%clk 0:00:15.8]} 55. Ba4 {[%clk 0:00:20.9]}
55... Bxf4 {[%clk 0:00:15.6]} 56. Kxf4 {[%clk 0:00:20.1]} 56... Kxh5 {[%clk
0:00:16.5]} 57. Ke4 {[%clk 0:00:20.4]} 57... Kg5 {[%clk 0:00:17.1]} 58. Kd4
{[%clk 0:00:20.6]} 58... Kf6 {[%clk 0:00:18]} 59. Kc4 {[%clk 0:00:21.1]} 59...
Ke5 {[%clk 0:00:18.9]} 60. Kb5 {[%clk 0:00:21.8]} 60... Kd6 {[%clk 0:00:19.8]}
61. Kxa5 {[%clk 0:00:22.3]} 1/2-1/2

[Event "*** SCC Grand Prix: Titled Tuesday Blitz"]
[Site "Chess.com"]
[Date "2020.07.21"]
[Round "1"]
[White "Vision_64"]
[Black "Hanging_pointer"]
[Result "0-1"]
[WhiteElo "2199"]
[BlackElo "2568"]
[TimeControl "180+1"]
[EndTime "10:07:51 PDT"]
[Termination "Hanging_pointer won by resignation"]

1. e4 {[%clk 0:02:59.7]} 1... c5 {[%clk 0:03:00.1]} 2. Nf3 {[%clk 0:02:59.6]}
2... d6 {[%clk 0:03:00.8]} 3. d4 {[%clk 0:02:59.6]} 3... cxd4 {[%clk 0:03:01.7]}
4. Nxd4 {[%clk 0:03:00.3]} 4... Nf6 {[%clk 0:03:02.6]} 5. Nc3 {[%clk 0:03:00.7]}
5... a6 {[%clk 0:03:02.9]} 6. Bg5 {[%clk 0:03:00.8]} 6... e6 {[%clk 0:03:02.9]}
7. f4 {[%clk 0:03:00.2]} 7... Nc6 {[%clk 0:03:02.5]} 8. Nxc6 {[%clk 0:02:53.7]}
8... bxc6 {[%clk 0:03:03.4]} 9. e5 {[%clk 0:02:53.2]} 9... dxe5 {[%clk
0:03:02.7]} 10. Qxd8+ {[%clk 0:02:47.9]} 10... Kxd8 {[%clk 0:03:03.6]} 11. fxe5
{[%clk 0:02:48.1]} 11... h6 {[%clk 0:03:03.7]} 12. Bh4 {[%clk 0:02:43.7]} 12...
g5 {[%clk 0:03:03.8]} 13. exf6 {[%clk 0:02:42.6]} 13... gxh4 {[%clk 0:03:04.7]}
14. O-O-O+ {[%clk 0:02:38.6]} 14... Kc7 {[%clk 0:03:04.9]} 15. Ne4 {[%clk
0:02:36.5]} 15... c5 {[%clk 0:03:02.5]} 16. Be2 {[%clk 0:02:25.6]} 16... Bb7
{[%clk 0:03:00.5]} 17. Bf3 {[%clk 0:02:25.7]} 17... Rg8 {[%clk 0:02:54.9]} 18.
Rhe1 {[%clk 0:02:20.7]} 18... Bc6 {[%clk 0:02:47]} 19. Re3 {[%clk 0:02:16.6]}
19... Rd8 {[%clk 0:01:57.9]} 20. Rc3 {[%clk 0:02:07.5]} 20... Rxd1+ {[%clk
0:01:55.7]} 21. Kxd1 {[%clk 0:02:06.3]} 21... Bxe4 {[%clk 0:01:53.9]} 22. Bxe4
{[%clk 0:02:06.1]} 22... Bd6 {[%clk 0:01:52.1]} 23. h3 {[%clk 0:01:59.6]} 23...
Rb8 {[%clk 0:01:46.6]} 24. Ra3 {[%clk 0:01:43.7]} 24... Rb6 {[%clk 0:01:41.7]}
25. Rb3 {[%clk 0:01:25.7]} 25... Rxb3 {[%clk 0:01:17.5]} 26. axb3 {[%clk
0:01:24.5]} 26... Be5 {[%clk 0:01:18.4]} 27. c3 {[%clk 0:01:24.4]} 27... Bxf6
{[%clk 0:01:16.6]} 28. Ke2 {[%clk 0:01:22.6]} 28... Bg5 {[%clk 0:01:11.4]} 29.
Kd3 {[%clk 0:00:58.6]} 29... f5 {[%clk 0:01:01.4]} 30. Bf3 {[%clk 0:00:58]}
30... e5 {[%clk 0:00:57.7]} 31. Kc4 {[%clk 0:00:58.1]} 31... Kd6 {[%clk
0:00:57.7]} 32. Bb7 {[%clk 0:00:57.1]} 32... a5 {[%clk 0:00:49]} 33. Kb5 {[%clk
0:00:51.8]} 33... Bc1 {[%clk 0:00:48.6]} 34. Kxa5 {[%clk 0:00:51.2]} 34... Bxb2
{[%clk 0:00:48.8]} 35. c4 {[%clk 0:00:48.2]} 35... e4 {[%clk 0:00:48.2]} 36. b4
{[%clk 0:00:46]} 36... Bc3 {[%clk 0:00:47.2]} 37. Ka4 {[%clk 0:00:42.6]} 37...
Bxb4 {[%clk 0:00:45.7]} 38. Kb3 {[%clk 0:00:42.9]} 38... Ke5 {[%clk 0:00:45.6]}
39. Bd5 {[%clk 0:00:42]} 39... Kd4 {[%clk 0:00:45.1]} 40. Kc2 {[%clk 0:00:42.1]}
40... f4 {[%clk 0:00:36.5]} 41. Kd1 {[%clk 0:00:39.6]} 41... Ke3 {[%clk
0:00:32.2]} 42. Kc2 {[%clk 0:00:20.7]} 42... Ba5 {[%clk 0:00:25.5]} 43. Kd1
{[%clk 0:00:20.3]} 43... Bd8 {[%clk 0:00:25.4]} 44. Kc2 {[%clk 0:00:20.4]} 44...
Bf6 {[%clk 0:00:25.1]} 45. Kd1 {[%clk 0:00:20.6]} 45... Bc3 {[%clk 0:00:23]} 46.
Kc2 {[%clk 0:00:20.8]} 46... Ba5 {[%clk 0:00:23.3]} 47. Kd1 {[%clk 0:00:20.9]}
47... f3 {[%clk 0:00:16.6]} 48. gxf3 {[%clk 0:00:21.8]} 48... exf3 {[%clk
0:00:17]} 49. Kc2 {[%clk 0:00:21.6]} 49... Ke2 {[%clk 0:00:14.8]} 50. Be4 {[%clk
0:00:19.7]} 50... f2 {[%clk 0:00:14.7]} 51. Bg2 {[%clk 0:00:20]} 51... f1=Q
{[%clk 0:00:13.9]} 52. Bxf1+ {[%clk 0:00:20.7]} 52... Kxf1 {[%clk 0:00:14.8]}
53. Kd3 {[%clk 0:00:21.3]} 53... Kg2 {[%clk 0:00:14.7]} 54. Ke4 {[%clk
0:00:21.9]} 54... Kxh3 {[%clk 0:00:15.1]} 55. Kd5 {[%clk 0:00:22.7]} 55... Bb4
{[%clk 0:00:16]} 56. Ke4 {[%clk 0:00:22.8]} 56... Kg2 {[%clk 0:00:16.3]} 57. Kf4
{[%clk 0:00:22.1]} 57... h3 {[%clk 0:00:17.2]} 58. Kg4 {[%clk 0:00:22.7]} 58...
h2 {[%clk 0:00:18.1]} 59. Kh5 {[%clk 0:00:23.6]} 59... h1=Q+ {[%clk 0:00:19]}
60. Kg6 {[%clk 0:00:23.5]} 60... h5 {[%clk 0:00:19.1]} 61. Kg7 {[%clk
0:00:23.8]} 61... h4 {[%clk 0:00:20]} 62. Kg8 {[%clk 0:00:24.3]} 62... Qf1
{[%clk 0:00:20.9]} 0-1

[Event "*** SCC Grand Prix: Titled Tuesday Blitz"]
[Site "Chess.com"]
[Date "2020.07.21"]
[Round "1"]
[White "isainz"]
[Black "amatatanav"]
[Result "1-0"]
[WhiteElo "2133"]
[BlackElo "2502"]
[TimeControl "180+1"]
[EndTime "10:07:51 PDT"]
[Termination "isainz won by resignation"]

1. e4 {[%clk 0:02:56.5]} 1... c5 {[%clk 0:02:59.8]} 2. Nf3 {[%clk 0:02:56.1]}
2... Nc6 {[%clk 0:03:00.1]} 3. d4 {[%clk 0:02:54.5]} 3... cxd4 {[%clk 0:03:01]}
4. Nxd4 {[%clk 0:02:53.9]} 4... g6 {[%clk 0:03:01.5]} 5. c4 {[%clk 0:02:52.9]}
5... Nf6 {[%clk 0:03:01]} 6. Nc3 {[%clk 0:02:52.4]} 6... d6 {[%clk 0:03:01.2]}
7. Be2 {[%clk 0:02:51.5]} 7... Nxd4 {[%clk 0:03:01.5]} 8. Qxd4 {[%clk
0:02:51.1]} 8... Bg7 {[%clk 0:03:02.4]} 9. Be3 {[%clk 0:02:50.2]} 9... O-O
{[%clk 0:03:02.1]} 10. Qd3 {[%clk 0:02:49.9]} 10... Be6 {[%clk 0:02:58.8]} 11.
Bd4 {[%clk 0:02:46.8]} 11... a6 {[%clk 0:01:55]} 12. O-O {[%clk 0:02:18.5]}
12... Qc7 {[%clk 0:01:29.2]} 13. f4 {[%clk 0:02:15]} 13... Rfc8 {[%clk
0:01:19.1]} 14. b3 {[%clk 0:02:12]} 14... Bg4 {[%clk 0:00:37.4]} 15. Bxg4 {[%clk
0:02:04.9]} 15... Nxg4 {[%clk 0:00:38.3]} 16. Nd5 {[%clk 0:02:04.3]} 16... Qd8
{[%clk 0:00:12.4]} 17. Bxg7 {[%clk 0:01:59.8]} 17... Kxg7 {[%clk 0:00:13.3]} 18.
Qd4+ {[%clk 0:02:00]} 18... e5 {[%clk 0:00:13.3]} 19. Qb2 {[%clk 0:01:47.7]}
19... Nf6 {[%clk 0:00:05.2]} 20. fxe5 {[%clk 0:01:40.7]} 20... Nxd5 {[%clk
0:00:05]} 21. exd5 {[%clk 0:01:34.2]} 21... dxe5 {[%clk 0:00:04.5]} 22. Qxe5+
{[%clk 0:01:34.2]} 22... f6 {[%clk 0:00:04.9]} 23. Qd4 {[%clk 0:01:25.2]} 23...
Rc7 {[%clk 0:00:04.7]} 24. Rae1 {[%clk 0:01:23.7]} 24... Rf7 {[%clk 0:00:02.6]}
25. c5 {[%clk 0:01:17.6]} 25... Qf8 {[%clk 0:00:02.4]} 26. b4 {[%clk 0:01:15.7]}
26... Rd8 {[%clk 0:00:02.8]} 27. d6 {[%clk 0:01:15.4]} 27... Kg8 {[%clk
0:00:02.9]} 28. Qd5 {[%clk 0:01:14]} 28... Kh8 {[%clk 0:00:02.5]} 29. Re6 {[%clk
0:01:08.3]} 29... f5 {[%clk 0:00:01.6]} 30. Qe5+ {[%clk 0:01:06.2]} 30... Kg8
{[%clk 0:00:01.9]} 31. Re1 {[%clk 0:00:59.6]} 31... Qg7 {[%clk 0:00:02.2]} 32.
Qxg7+ {[%clk 0:00:56.7]} 32... Kxg7 {[%clk 0:00:03.1]} 33. Re7 {[%clk
0:00:56.1]} 33... Rd7 {[%clk 0:00:03.6]} 34. Rxd7 {[%clk 0:00:41.5]} 34... Rxd7
{[%clk 0:00:03.5]} 35. Kf2 {[%clk 0:00:41.1]} 35... Kf6 {[%clk 0:00:03.5]} 36.
Ke3 {[%clk 0:00:40.9]} 36... Kf7 {[%clk 0:00:03.1]} 37. Kd4 {[%clk 0:00:40.9]}
37... Rd8 {[%clk 0:00:01.7]} 38. Kd5 {[%clk 0:00:40.8]} 38... Rd7 {[%clk
0:00:01.8]} 39. a4 {[%clk 0:00:39.5]} 39... h6 {[%clk 0:00:01.6]} 40. b5 {[%clk
0:00:38.8]} 40... axb5 {[%clk 0:00:01.8]} 41. axb5 {[%clk 0:00:39]} 41... Kf6
{[%clk 0:00:01.2]} 42. c6 {[%clk 0:00:38.8]} 42... bxc6+ {[%clk 0:00:01.9]} 43.
bxc6 {[%clk 0:00:38.8]} 43... Ra7 {[%clk 0:00:02.8]} 44. d7 {[%clk 0:00:37.7]}
44... Ra8 {[%clk 0:00:02.2]} 45. Kd6 {[%clk 0:00:37.5]} 45... Kf7 {[%clk
0:00:01.8]} 46. Re8 {[%clk 0:00:32.8]} 46... Rxe8 {[%clk 0:00:01.7]} 47. dxe8=Q+
{[%clk 0:00:32.2]} 47... Kxe8 {[%clk 0:00:02.6]} 48. Kc7 {[%clk 0:00:32.2]}
48... Ke7 {[%clk 0:00:02.4]} 49. Kb7 {[%clk 0:00:32.4]} 49... f4 {[%clk
0:00:03.3]} 50. c7 {[%clk 0:00:32.3]} 50... g5 {[%clk 0:00:04.2]} 51. c8=Q
{[%clk 0:00:31.9]} 51... Kf6 {[%clk 0:00:05.1]} 52. Qc6+ {[%clk 0:00:30.3]}
52... Kf5 {[%clk 0:00:04.8]} 53. Qf3 {[%clk 0:00:29.4]} 53... h5 {[%clk
0:00:03.5]} 54. Qxh5 {[%clk 0:00:28.9]} 54... Kf6 {[%clk 0:00:03.6]} 55. h4
{[%clk 0:00:28.4]} 55... gxh4 {[%clk 0:00:03.6]} 56. Qxh4+ {[%clk 0:00:28.6]}
56... Kf5 {[%clk 0:00:04.5]} 57. g3 {[%clk 0:00:27.7]} 57... fxg3 {[%clk
0:00:03.9]} 58. Qxg3 {[%clk 0:00:27.5]} 58... Ke4 {[%clk 0:00:04.1]} 59. Qc3
{[%clk 0:00:26.3]} 1-0